[Event "MCR rapid mládeže 2023 U16"]
[Site "Harachov, Czech Republic"]
[Date "2023.09.09"]
[Round "3.31"]
[White "Gernert , Tomas"]
[Black "Mauric, Jan"]
[Result "1/2-1/2"]
[TimeControl "20min+5s/move"]
[WhiteElo "1236"]
[BlackElo "1260"]

1. e4 {[%clk 00:20:08]} {[%emt 00:00:02]} e6 {[%clk 00:20:08]} {[%emt
00:00:03]} 2. d4 {[%clk 00:20:10]} {[%emt 00:00:02]} b6 {[%clk 00:20:11]}
{[%emt 00:00:01]} 3. Nc3 {[%clk 00:20:11]} {[%emt 00:00:05]} Bb7 {[%clk
00:20:15]} {[%emt 00:00:02]} 4. Nf3 {[%clk 00:20:14]} {[%emt 00:00:01]} Bb4
{[%clk 00:20:06]} {[%emt 00:00:14]} 5. Bd3 {[%clk 00:19:12]} {[%emt 00:01:06]}
Nf6 {[%clk 00:20:06]} {[%emt 00:00:05]} 6. e5 {[%clk 00:18:51]} {[%emt
00:00:27]} Nd5 {[%clk 00:19:42]} {[%emt 00:00:28]} 7. Bd2 {[%clk 00:18:53]}
{[%emt 00:00:04]} Nxc3 {[%clk 00:19:33]} {[%emt 00:00:15]} 8. Bxc3 {[%clk
00:18:51]} {[%emt 00:00:05]} Bxc3+ {[%clk 00:19:36]} {[%emt 00:00:03]} 9. bxc3
{[%clk 00:18:54]} {[%emt 00:00:02]} O-O {[%clk 00:19:29]} {[%emt 00:00:11]} 10.
O-O {[%clk 00:18:58]} {[%emt 00:00:03]} h6 {[%clk 00:19:14]} {[%emt 00:00:19]}
11. c4 {[%clk 00:18:38]} {[%emt 00:00:25]} f6 {[%clk 00:17:44]} {[%emt
00:01:35]} 12. c3 {[%clk 00:17:54]} {[%emt 00:00:50]} d6 {[%clk 00:15:31]}
{[%emt 00:02:18]} 13. exd6 {[%clk 00:17:06]} {[%emt 00:00:53]} Qxd6 {[%clk
00:15:31]} {[%emt 00:00:04]} 14. Re1 {[%clk 00:16:55]} {[%emt 00:00:15]} c5
{[%clk 00:13:53]} {[%emt 00:01:44]} 15. Bg6 {[%clk 00:15:35]} {[%emt 00:01:23]}
cxd4 {[%clk 00:12:28]} {[%emt 00:01:32]} 16. cxd4 {[%clk 00:11:23]} {[%emt
00:04:17]} Nc6 {[%clk 00:12:05]} {[%emt 00:00:28]} 17. Qd3 {[%clk 00:10:51]}
{[%emt 00:00:35]} Rad8 {[%clk 00:09:49]} {[%emt 00:02:22]} 18. Bh7+ {[%clk
00:09:19]} {[%emt 00:01:36]} Kh8 {[%clk 00:09:50]} {[%emt 00:00:05]} 19. Rad1
{[%clk 00:08:54]} {[%emt 00:00:29]} Rd7 {[%clk 00:07:50]} {[%emt 00:02:07]} 20.
Be4 {[%clk 00:06:41]} {[%emt 00:02:17]} Rfd8 {[%clk 00:07:19]} {[%emt
00:00:36]} 21. Bxc6 {[%clk 00:04:55]} {[%emt 00:01:51]} Bxc6 {[%clk 00:07:21]}
{[%emt 00:00:04]} 22. Qe3 {[%clk 00:04:23]} {[%emt 00:00:37]} e5 {[%clk
00:06:29]} {[%emt 00:00:57]} 23. d5 {[%clk 00:03:53]} {[%emt 00:00:35]} Bb7
{[%clk 00:06:10]} {[%emt 00:00:24]} 24. Nh4 {[%clk 00:02:59]} {[%emt 00:00:58]}
Qc5 {[%clk 00:05:32]} {[%emt 00:00:44]} 25. Ng6+ {[%clk 00:02:32]} {[%emt
00:00:32]} Kg8 {[%clk 00:05:33]} {[%emt 00:00:03]} 26. Qxc5 {[%clk 00:02:35]}
{[%emt 00:00:03]} bxc5 {[%clk 00:05:35]} {[%emt 00:00:03]} 27. f4 {[%clk
00:02:29]} {[%emt 00:00:11]} Kf7 {[%clk 00:04:55]} {[%emt 00:00:45]} 28. f5
{[%clk 00:02:00]} {[%emt 00:00:34]} Bxd5 {[%clk 00:04:35]} {[%emt 00:00:26]} 29.
cxd5 {[%clk 00:01:43]} {[%emt 00:00:21]} Rxd5 {[%clk 00:04:38]} {[%emt
00:00:02]} 30. Rxd5 {[%clk 00:01:43]} {[%emt 00:00:05]} Rxd5 {[%clk 00:04:42]}
{[%emt 00:00:02]} 31. Rc1 {[%clk 00:01:42]} {[%emt 00:00:05]} e4 {[%clk
00:04:33]} {[%emt 00:00:14]} 32. g4 {[%clk 00:01:41]} {[%emt 00:00:06]} h5
{[%clk 00:04:15]} {[%emt 00:00:23]} 33. h3 {[%clk 00:01:44]} hxg4 {[%clk
00:03:40]} {[%emt 00:00:42]} 34. hxg4 {[%clk 00:01:45]} {[%emt 00:00:03]} e3
{[%clk 00:03:16]} {[%emt 00:00:29]} 35. Kg2 {[%clk 00:01:39]} {[%emt 00:00:10]}
Rd2+ {[%clk 00:03:00]} {[%emt 00:00:21]} 36. Kf3 {[%clk 00:01:40]} {[%emt
00:00:04]} e2 {[%clk 00:02:24]} {[%emt 00:00:41]} 37. Re1 {[%clk 00:01:17]}
{[%emt 00:00:28]} Rxa2 {[%clk 00:02:03]} {[%emt 00:00:27]} 38. Rxe2 {[%clk
00:01:20]} {[%emt 00:00:02]} Rxe2 {[%clk 00:01:52]} {[%emt 00:00:16]} 39. Kxe2
{[%clk 00:01:23]} {[%emt 00:00:01]} Ke8 {[%clk 00:01:55]} {[%emt 00:00:02]} 40.
Kd3 {[%clk 00:01:26]} {[%emt 00:00:02]} Kd7 {[%clk 00:01:59]} {[%emt 00:00:02]}
41. Kc4 {[%clk 00:01:30]} {[%emt 00:00:01]} Kc6 {[%clk 00:02:03]} {[%emt
00:00:01]} 42. Ne7+ {[%clk 00:01:13]} {[%emt 00:00:21]} Kd6 {[%clk 00:01:35]}
{[%emt 00:00:34]} 43. Nc8+ {[%clk 00:00:19]} {[%emt 00:00:59]} Ke5 {[%clk
00:01:38]} {[%emt 00:00:01]} 44. Nxa7 {[%clk 00:00:23]} {[%emt 00:00:02]} Kf4
{[%clk 00:01:42]} 45. Kxc5 {[%clk 00:00:27]} {[%emt 00:00:02]} Kxg4 {[%emt
00:00:29]} 46. Kd4 {[%emt 00:00:01]} Kxf5 {[%emt 00:00:01]} 47. Nc6 Kf4 {[%emt
00:00:03]} 48. Ne7 {[%emt 00:00:04]} g5 {[%emt 00:00:02]} 49. Ng6 {[%emt
00:00:01]} Kg4 {[%clk 00:01:40]} {[%emt 00:00:11]} 50. Ke4 {[%clk 00:00:27]}
{[%emt 00:00:02]} f5+ {[%clk 00:01:40]} {[%emt 00:00:06]} 51. Ke3 {[%clk
00:00:27]} {[%emt 00:00:01]} Kg3 {[%emt 00:00:09]} 52. Ne5 {[%emt 00:00:02]}
f4+ {[%emt 00:00:02]} 53. Ke2 {[%emt 00:00:03]} Kg2 {[%emt 00:00:01]} 54. Nf3
{[%emt 00:00:16]} g4 {[%emt 00:00:02]} 55. Ng5 Kh2 {[%emt 00:00:04]} 56. Kf2
{[%emt 00:00:02]} g3+ {[%emt 00:00:01]} 57. Ke2 {[%emt 00:00:06]} g2 {[%emt
00:00:02]} 58. Nf3 Kh1 {[%emt 00:00:02]} 59. Kf2 {[%emt 00:00:03]} Kh2 {[%emt
00:00:04]} 60. Ke2 {[%emt 00:00:03]} Kg3 {[%emt 00:00:01]} 61. Ng1 {[%emt
00:00:24]} 1/2-1/2

[Event "MCR rapid mládeže 2023 U16"]
[Site "Harachov, Czech Republic"]
[Date "2023.09.09"]
[Round "3.32"]
[White "Krivka, Lukas"]
[Black "Vo, Daniel"]
[Result "0-1"]
[TimeControl "20min+5s/move"]
[WhiteElo "1104"]
[BlackElo "1445"]

1. d4 {[%clk 00:19:59]} {[%emt 00:00:10]} d5 {[%clk 00:20:05]} {[%emt
00:00:05]} 2. Nc3 {[%clk 00:19:42]} {[%emt 00:00:22]} Nf6 {[%clk 00:20:06]}
{[%emt 00:00:04]} 3. Bf4 {[%clk 00:19:42]} {[%emt 00:00:05]} c6 {[%clk
00:20:03]} {[%emt 00:00:08]} 4. Nf3 {[%clk 00:19:33]} {[%emt 00:00:13]} e6
{[%clk 00:20:01]} {[%emt 00:00:08]} 5. e3 {[%clk 00:19:21]} {[%emt 00:00:17]}
Bb4 {[%clk 00:19:49]} {[%emt 00:00:17]} 6. Qd3 {[%clk 00:18:30]} {[%emt
00:00:55]} b6 {[%clk 00:19:32]} {[%emt 00:00:24]} 7. Bg5 {[%clk 00:16:08]}
{[%emt 00:02:27]} Ba6 {[%clk 00:19:29]} {[%emt 00:00:08]} 8. Bxf6 {[%clk
00:12:29]} {[%emt 00:03:44]} Qxf6 {[%clk 00:19:21]} {[%emt 00:00:12]} 9. Qd2
{[%clk 00:12:26]} {[%emt 00:00:07]} Bxf1 {[%clk 00:19:07]} {[%emt 00:00:21]} 10.
Rxf1 {[%clk 00:12:28]} {[%emt 00:00:02]} Nd7 {[%clk 00:19:04]} {[%emt
00:00:07]} 11. a3 {[%clk 00:12:27]} {[%emt 00:00:07]} Bxc3 {[%clk 00:18:50]}
{[%emt 00:00:19]} 12. Qxc3 {[%clk 00:12:28]} {[%emt 00:00:04]} c5 {[%clk
00:18:44]} {[%emt 00:00:11]} 13. Qd3 {[%clk 00:11:47]} {[%emt 00:00:46]} cxd4
{[%clk 00:18:29]} {[%emt 00:00:20]} 14. Nxd4 {[%clk 00:11:02]} {[%emt
00:00:50]} O-O {[%clk 00:18:07]} {[%emt 00:00:26]} 15. O-O-O {[%clk 00:07:50]}
{[%emt 00:03:17]} Nc5 {[%clk 00:18:03]} {[%emt 00:00:10]} 16. Qc3 {[%clk
00:07:10]} {[%emt 00:00:45]} Rac8 {[%clk 00:17:45]} {[%emt 00:00:23]} 17. Nb5
{[%clk 00:06:06]} {[%emt 00:01:09]} Qe7 {[%clk 00:17:35]} {[%emt 00:00:15]} 18.
Kb1 {[%clk 00:05:18]} {[%emt 00:00:53]} a6 {[%clk 00:17:10]} {[%emt 00:00:31]}
19. Nd4 {[%clk 00:04:53]} {[%emt 00:00:29]} a5 {[%clk 00:16:36]} {[%emt
00:00:39]} 20. Nb3 {[%clk 00:04:33]} {[%emt 00:00:25]} Ne4 {[%clk 00:16:29]}
{[%emt 00:00:11]} 21. Qd4 {[%clk 00:04:16]} {[%emt 00:00:23]} a4 {[%clk
00:15:26]} {[%emt 00:01:08]} 22. Nd2 {[%clk 00:03:45]} {[%emt 00:00:36]} Qc7
{[%clk 00:15:09]} {[%emt 00:00:18]} 23. Rc1 {[%clk 00:03:42]} {[%emt 00:00:12]}
Nd6 {[%clk 00:14:30]} {[%emt 00:00:43]} 24. f3 {[%clk 00:02:36]} {[%emt
00:01:12]} Nf5 {[%clk 00:14:27]} {[%emt 00:00:08]} 25. Qd3 {[%clk 00:01:49]}
{[%emt 00:00:51]} Rfd8 {[%emt 00:00:33]} 26. g4 {[%clk 00:01:21]} {[%emt
00:00:33]} Nd6 {[%clk 00:13:29]} {[%emt 00:00:35]} 27. h4 {[%clk 00:00:46]}
{[%emt 00:00:40]} b5 {[%clk 00:13:25]} {[%emt 00:00:11]} 28. f4 {[%clk
00:00:29]} {[%emt 00:00:22]} Rb8 {[%clk 00:13:20]} {[%emt 00:00:09]} 29. Qc3
{[%clk 00:00:22]} {[%emt 00:00:12]} Qxc3 {[%clk 00:13:14]} {[%emt 00:00:11]} 30.
bxc3 {[%clk 00:00:26]} {[%emt 00:00:01]} Rdc8 {[%clk 00:13:15]} {[%emt
00:00:02]} 31. Kb2 {[%clk 00:00:30]} {[%emt 00:00:03]} Rc7 {[%clk 00:13:15]}
{[%emt 00:00:06]} 32. Nb1 {[%clk 00:00:27]} {[%emt 00:00:08]} Nc4+ {[%clk
00:13:08]} {[%emt 00:00:11]} 33. Ka2 {[%clk 00:00:24]} {[%emt 00:00:08]} Nxe3
{[%clk 00:13:09]} {[%emt 00:00:04]} 34. Rg1 {[%clk 00:00:12]} {[%emt 00:00:17]}
Rc4 {[%clk 00:13:00]} {[%emt 00:00:12]} 35. Rg3 {[%clk 00:00:07]} {[%emt
00:00:12]} d4 {[%clk 00:12:46]} {[%emt 00:00:19]} 36. cxd4 {[%clk 00:00:09]}
{[%emt 00:00:03]} Nxc2 {[%clk 00:12:41]} {[%emt 00:00:10]} 37. Rxc2 {[%clk
00:00:06]} {[%emt 00:00:09]} Rxc2+ {[%clk 00:12:43]} {[%emt 00:00:02]} 38. Ka1
{[%clk 00:00:09]} {[%emt 00:00:02]} Rd8 {[%clk 00:12:44]} {[%emt 00:00:04]} 39.
Rd3 {[%clk 00:00:07]} {[%emt 00:00:07]} Rc4 {[%clk 00:12:47]} {[%emt 00:00:02]}
40. Kb2 {[%clk 00:00:11]} {[%emt 00:00:02]} Rcxd4 {[%clk 00:12:49]} {[%emt
00:00:02]} 41. Rxd4 {[%clk 00:00:09]} {[%emt 00:00:07]} Rxd4 {[%clk 00:12:52]}
{[%emt 00:00:02]} 42. f5 {[%clk 00:00:13]} {[%emt 00:00:01]} exf5 43. gxf5
{[%clk 00:00:17]} Rxh4 {[%clk 00:12:53]} {[%emt 00:00:03]} 44. Nc3 {[%clk
00:00:20]} {[%emt 00:00:02]} Rh2+ {[%clk 00:12:51]} {[%emt 00:00:07]} 45. Kb1
{[%clk 00:00:18]} {[%emt 00:00:07]} Rf2 {[%clk 00:12:51]} {[%emt 00:00:04]} 46.
Nxb5 {[%clk 00:00:22]} {[%emt 00:00:03]} Rxf5 {[%clk 00:12:52]} {[%emt
00:00:04]} 47. Nc3 {[%clk 00:00:26]} {[%emt 00:00:01]} g5 {[%clk 00:12:55]}
{[%emt 00:00:02]} 48. Nxa4 {[%clk 00:00:27]} {[%emt 00:00:05]} Ra5 {[%clk
00:12:58]} 49. Nc3 {[%clk 00:00:29]} {[%emt 00:00:02]} Rxa3 {[%emt 00:00:04]}
50. Ne4 {[%clk 00:00:28]} {[%emt 00:00:04]} h6 {[%clk 00:13:03]} {[%emt
00:00:03]} 51. Nf6+ {[%clk 00:00:27]} {[%emt 00:00:07]} Kg7 {[%clk 00:13:07]}
{[%emt 00:00:02]} 52. Ne8+ {[%clk 00:00:25]} {[%emt 00:00:07]} Kg6 {[%clk
00:13:10]} {[%emt 00:00:01]} 53. Nd6 {[%clk 00:00:27]} {[%emt 00:00:03]} g4
{[%clk 00:13:11]} {[%emt 00:00:04]} 54. Ne4 {[%clk 00:00:29]} {[%emt 00:00:02]}
f5 {[%clk 00:13:15]} {[%emt 00:00:02]} 55. Nf2 {[%clk 00:00:28]} {[%emt
00:00:05]} h5 {[%clk 00:13:17]} {[%emt 00:00:04]} 56. Kb2 {[%clk 00:00:26]}
{[%emt 00:00:07]} Rf3 {[%clk 00:13:19]} {[%emt 00:00:02]} 57. Nd1 {[%clk
00:00:28]} {[%emt 00:00:05]} Kg5 {[%clk 00:13:22]} {[%emt 00:00:02]} 58. Kc2
{[%clk 00:00:30]} {[%emt 00:00:02]} h4 {[%clk 00:13:25]} {[%emt 00:00:02]} 59.
Kd2 {[%clk 00:00:34]} {[%emt 00:00:02]} h3 {[%clk 00:13:28]} {[%emt 00:00:01]}
0-1

[Event "MCR rapid mládeže 2023 U16"]
[Site "Harachov, Czech Republic"]
[Date "2023.09.09"]
[Round "3.33"]
[White "Berdnikov, Tsyren"]
[Black "Trejbal, Jindrich"]
[Result "0-1"]
[TimeControl "20min+5s/move"]
[WhiteElo "1027"]
[BlackElo "1088"]

1. e4 {[%clk 00:20:09]} e5 {[%clk 00:20:01]} {[%emt 00:00:10]} 2. Nf3 {[%clk
00:20:12]} {[%emt 00:00:02]} Nf6 {[%clk 00:19:57]} {[%emt 00:00:08]} 3. Nxe5
{[%clk 00:20:15]} {[%emt 00:00:02]} d6 {[%clk 00:19:58]} {[%emt 00:00:04]} 4.
Nf3 {[%clk 00:20:20]} Nxe4 {[%clk 00:19:54]} {[%emt 00:00:09]} 5. Qe2 {[%clk
00:20:24]} {[%emt 00:00:01]} Qe7 {[%clk 00:19:50]} {[%emt 00:00:08]} 6. d3
{[%clk 00:20:25]} {[%emt 00:00:04]} Nf6 {[%clk 00:19:38]} {[%emt 00:00:17]} 7.
Bg5 {[%clk 00:20:28]} {[%emt 00:00:02]} Qxe2+ {[%clk 00:19:15]} {[%emt
00:00:28]} 8. Bxe2 {[%clk 00:20:30]} {[%emt 00:00:03]} Be7 {[%clk 00:19:15]}
{[%emt 00:00:05]} 9. O-O {[%clk 00:20:32]} {[%emt 00:00:03]} O-O {[%clk
00:18:34]} {[%emt 00:00:46]} 10. Nc3 {[%clk 00:20:27]} {[%emt 00:00:11]} h6
{[%clk 00:17:42]} {[%emt 00:00:55]} 11. Bxf6 {[%clk 00:20:25]} {[%emt
00:00:06]} Bxf6 {[%clk 00:17:39]} {[%emt 00:00:10]} 12. Nd5 {[%clk 00:20:24]}
{[%emt 00:00:05]} Bd8 {[%clk 00:17:35]} {[%emt 00:00:10]} 13. d4 {[%clk
00:20:15]} {[%emt 00:00:13]} Be6 {[%clk 00:17:09]} {[%emt 00:00:32]} 14. Nf4
{[%clk 00:20:00]} {[%emt 00:00:19]} Nd7 {[%clk 00:15:59]} {[%emt 00:01:16]} 15.
d5 {[%clk 00:19:58]} {[%emt 00:00:06]} Bf5 {[%clk 00:15:33]} {[%emt 00:00:31]}
16. c4 {[%clk 00:20:01]} {[%emt 00:00:03]} Bg4 {[%clk 00:15:06]} {[%emt
00:00:31]} 17. h3 {[%clk 00:19:50]} {[%emt 00:00:16]} Bxf3 {[%clk 00:14:51]}
{[%emt 00:00:20]} 18. Bxf3 {[%clk 00:19:53]} {[%emt 00:00:02]} Ne5 {[%clk
00:14:35]} {[%emt 00:00:21]} 19. Be2 {[%clk 00:19:32]} {[%emt 00:00:25]} Bg5
{[%clk 00:14:22]} {[%emt 00:00:18]} 20. Nd3 {[%clk 00:19:24]} {[%emt 00:00:11]}
Nxc4 {[%clk 00:14:02]} {[%emt 00:00:28]} 21. f4 {[%clk 00:19:14]} {[%emt
00:00:15]} Bf6 {[%clk 00:13:20]} {[%emt 00:00:47]} 22. b3 {[%clk 00:19:01]}
{[%emt 00:00:18]} Bxa1 {[%clk 00:13:08]} {[%emt 00:00:18]} 23. Rxa1 {[%clk
00:18:54]} {[%emt 00:00:11]} Ne3 {[%clk 00:12:43]} {[%emt 00:00:30]} 24. Bf3
{[%clk 00:18:28]} {[%emt 00:00:31]} Rfe8 {[%clk 00:11:23]} {[%emt 00:01:25]} 25.
Rc1 {[%clk 00:18:15]} {[%emt 00:00:18]} Rac8 {[%clk 00:10:56]} {[%emt
00:00:31]} 26. g4 {[%clk 00:18:16]} {[%emt 00:00:05]} Re7 {[%clk 00:10:22]}
{[%emt 00:00:38]} 27. Kf2 {[%clk 00:17:51]} {[%emt 00:00:31]} h5 {[%clk
00:09:14]} {[%emt 00:01:13]} 28. Rc3 {[%clk 00:17:45]} {[%emt 00:00:12]} hxg4
{[%clk 00:08:49]} {[%emt 00:00:30]} 29. hxg4 {[%clk 00:17:48]} {[%emt
00:00:02]} Rce8 {[%clk 00:08:30]} {[%emt 00:00:22]} 30. Nb4 {[%clk 00:17:42]}
{[%emt 00:00:04]} g5 {[%clk 00:07:41]} {[%emt 00:01:02]} 31. fxg5 {[%clk
00:17:30]} {[%emt 00:00:17]} f5 {[%clk 00:07:28]} {[%emt 00:00:18]} 32. gxf6
{[%clk 00:17:32]} {[%emt 00:00:03]} Re5 {[%clk 00:07:05]} {[%emt 00:00:27]} 33.
Rxc7 {[%clk 00:17:27]} {[%emt 00:00:11]} Rf8 {[%clk 00:06:48]} {[%emt
00:00:22]} 34. Rc3 {[%clk 00:17:21]} {[%emt 00:00:12]} Rfe8 {[%clk 00:06:34]}
{[%emt 00:00:18]} 35. Rc7 {[%clk 00:17:24]} {[%emt 00:00:03]} Rf8 {[%clk
00:05:01]} {[%emt 00:01:38]} 36. Rc3 {[%clk 00:17:23]} {[%emt 00:00:06]} Nxg4+
{[%clk 00:04:13]} {[%emt 00:00:53]} 37. Bxg4 {[%clk 00:17:20]} {[%emt
00:00:07]} Rxf6+ {[%clk 00:04:16]} {[%emt 00:00:03]} 38. Rf3 {[%clk 00:17:00]}
{[%emt 00:00:25]} Rxf3+ {[%clk 00:04:14]} {[%emt 00:00:07]} 39. Kxf3 {[%clk
00:16:22]} {[%emt 00:00:04]} Kf8 {[%clk 00:04:03]} {[%emt 00:00:55]} 40. Kf2
{[%clk 00:15:59]} {[%emt 00:00:28]} Re4 {[%clk 00:04:02]} {[%emt 00:00:06]} 41.
Nc2 {[%clk 00:15:52]} {[%emt 00:00:12]} Rxg4 {[%clk 00:04:05]} {[%emt
00:00:02]} 42. Kf3 {[%clk 00:15:46]} {[%emt 00:00:11]} Rg5 {[%clk 00:03:52]}
{[%emt 00:00:16]} 43. Ke4 {[%clk 00:15:42]} {[%emt 00:00:10]} Re5+ {[%clk
00:03:43]} {[%emt 00:00:15]} 44. Kd4 {[%clk 00:15:41]} {[%emt 00:00:06]} Ke7
{[%clk 00:03:04]} {[%emt 00:00:42]} 45. Ne3 {[%clk 00:15:40]} {[%emt 00:00:06]}
b5 {[%clk 00:02:28]} {[%emt 00:00:43]} 46. Nc2 {[%clk 00:15:33]} {[%emt
00:00:11]} a5 {[%clk 00:02:20]} {[%emt 00:00:13]} 47. b4 {[%clk 00:15:36]}
{[%emt 00:00:03]} Re2 {[%clk 00:02:00]} {[%emt 00:00:24]} 48. Ne3 {[%clk
00:15:17]} {[%emt 00:00:23]} axb4 {[%clk 00:01:44]} {[%emt 00:00:22]} 49. Nf5+
{[%clk 00:15:19]} {[%emt 00:00:02]} Kd7 {[%clk 00:01:37]} {[%emt 00:00:12]} 50.
Ng3 {[%clk 00:15:08]} {[%emt 00:00:16]} Rxa2 {[%clk 00:01:31]} {[%emt
00:00:11]} 51. Nh5 {[%clk 00:15:10]} {[%emt 00:00:03]} Ke7 {[%clk 00:01:18]}
{[%emt 00:00:17]} 52. Ng7 {[%clk 00:15:09]} {[%emt 00:00:06]} Re2 {[%clk
00:01:13]} {[%emt 00:00:10]} 53. Nf5+ {[%clk 00:15:10]} {[%emt 00:00:06]} Kd7
{[%clk 00:01:14]} {[%emt 00:00:03]} 54. Ng3 {[%clk 00:14:42]} {[%emt 00:00:33]}
Rh2 {[%clk 00:00:59]} {[%emt 00:00:21]} 55. Nf1 {[%clk 00:14:40]} {[%emt
00:00:06]} Rh3 {[%clk 00:01:00]} {[%emt 00:00:04]} 56. Ne3 {[%clk 00:14:37]}
{[%emt 00:00:08]} Rxe3 {[%clk 00:00:56]} {[%emt 00:00:09]} 57. Kxe3 {[%clk
00:14:40]} {[%emt 00:00:02]} Ke7 {[%clk 00:01:00]} {[%emt 00:00:01]} 58. Kd4
{[%clk 00:14:43]} {[%emt 00:00:02]} Kf6 {[%clk 00:01:04]} {[%emt 00:00:01]} 59.
Ke4 {[%clk 00:14:43]} {[%emt 00:00:05]} Kg5 {[%clk 00:01:07]} {[%emt 00:00:02]}
60. Kd4 {[%clk 00:14:44]} {[%emt 00:00:04]} Kf4 {[%clk 00:01:11]} {[%emt
00:00:01]} 61. Kd3 {[%clk 00:14:41]} {[%emt 00:00:08]} Ke5 {[%clk 00:01:15]}
{[%emt 00:00:01]} 62. Kc2 {[%clk 00:14:44]} {[%emt 00:00:03]} Kxd5 {[%clk
00:01:19]} {[%emt 00:00:01]} 63. Kb3 {[%clk 00:14:44]} {[%emt 00:00:04]} Ke4
{[%clk 00:01:16]} {[%emt 00:00:08]} 64. Kxb4 {[%clk 00:14:46]} {[%emt
00:00:03]} d5 {[%clk 00:01:20]} {[%emt 00:00:02]} 65. Kc3 {[%clk 00:14:46]}
{[%emt 00:00:05]} d4+ {[%clk 00:01:23]} {[%emt 00:00:01]} 66. Kd2 {[%clk
00:14:49]} {[%emt 00:00:01]} b4 {[%clk 00:01:26]} {[%emt 00:00:04]} 67. Kc2
{[%clk 00:14:52]} {[%emt 00:00:01]} d3+ {[%clk 00:01:30]} {[%emt 00:00:02]} 68.
Kd2 {[%clk 00:14:56]} {[%emt 00:00:01]} Kd4 {[%clk 00:01:33]} {[%emt 00:00:01]}
69. Kc1 {[%clk 00:14:58]} {[%emt 00:00:03]} Kc3 {[%clk 00:01:36]} {[%emt
00:00:03]} 70. Kd1 {[%clk 00:15:01]} {[%emt 00:00:02]} d2 {[%clk 00:01:39]}
{[%emt 00:00:01]} 71. Ke2 {[%clk 00:15:03]} {[%emt 00:00:03]} Kc2 {[%clk
00:01:43]} {[%emt 00:00:02]} 72. Kf1 {[%clk 00:15:06]} {[%emt 00:00:01]} d1=Q+
{[%clk 00:01:46]} {[%emt 00:00:03]} 73. Kf2 {[%clk 00:15:10]} Kd3 {[%clk
00:01:46]} {[%emt 00:00:05]} 74. Kg2 {[%clk 00:15:13]} {[%emt 00:00:02]} Qg4+
{[%clk 00:01:47]} {[%emt 00:00:05]} 75. Kh2 {[%clk 00:15:16]} {[%emt 00:00:01]}
Ke3 {[%clk 00:01:50]} {[%emt 00:00:03]} 76. Kh1 {[%clk 00:15:19]} {[%emt
00:00:01]} Kf2 {[%clk 00:01:53]} {[%emt 00:00:02]} 77. Kh2 {[%clk 00:15:23]}
Qg2 {[%clk 00:01:57]} {[%emt 00:00:02]} 0-1